fUST/lending_fUST_20250901
["ID","MTS","AMOUNT","RATE_DAILY","PERIOD"]
[382664515,1756701043415,-480.0,0.0001466,2]
[382664517,1756701043425,-480.0,0.0001466,2]
[382664519,1756701043435,-480.0,0.0001466,2]
[382664521,1756701043446,-480.0,0.0001466,2]
[382664524,1756701043456,-480.0,0.0001466,2]
[382664526,1756701043465,-480.0,0.0001466,2]
[382664527,1756701043475,-480.0,0.0001466,2]
[382664530,1756701043486,-480.0,0.0001466,2]
[382664532,1756701043497,-480.0,0.0001466,2]
[382664534,1756701043507,-480.0,0.0001466,2]
[382664535,1756701043518,-480.0,0.0001466,2]
[382664538,1756701043529,-480.0,0.0001466,2]
[382664539,1756701043538,-480.0,0.0001466,2]
[382664541,1756701043548,-480.0,0.0001466,2]
[382664543,1756701043557,-480.0,0.0001466,2]
[382664545,1756701043566,-480.0,0.0001466,2]
[382664547,1756701043577,-633.79,0.0001466,2]
[382664549,1756701043587,-480.0,0.0001466,2]
[382664551,1756701043596,-480.0,0.0001466,2]
[382664553,1756701043606,-480.0,0.0001466,2]
[382664556,1756701043615,-480.0,0.0001466,2]
[382664558,1756701043625,-480.0,0.0001466,2]
[382664560,1756701043634,-480.0,0.0001466,2]
[382664562,1756701043643,-480.0,0.0001466,2]
[382664564,1756701043652,-1075.32,0.0001466,2]
[382664566,1756701043662,-480.0,0.0001466,2]
[382664568,1756701043671,-386.39176517,0.0001466,2]
[382664570,1756701043680,-687.3,0.0001466,2]
[382664572,1756701043689,-586.9,0.0001466,2]
[382664574,1756701043698,-480.0,0.0001466,2]
[382664576,1756701043708,-3656.99,0.0001466,2]
[382664578,1756701043717,-480.0,0.0001466,2]
[382664580,1756701043726,-480.0,0.0001466,2]
[382664582,1756701043736,-558.98692058,0.0001466,2]
[382664584,1756701043745,-827.07,0.0001466,2]
[382664586,1756701043754,-480.0,0.0001466,2]
[382664588,1756701043763,-680.89,0.0001466,2]
[382664590,1756701043772,-1445.0,0.0001466,2]
[382664592,1756701043781,-480.0,0.0001466,2]
[382664594,1756701043791,-710.18,0.0001466,2]
[382664595,1756701043800,-3465.79,0.0001466,2]
[382664597,1756701043810,-480.0,0.0001466,2]
[382664599,1756701043819,-480.0,0.0001466,2]
[382664601,1756701043829,-480.0,0.0001466,2]
[382664603,1756701043838,-480.0,0.0001466,2]
[382664607,1756701043847,-981.36,0.0001466,2]
[382664610,1756701043857,-480.0,0.0001466,2]
[382664611,1756701043866,-2440.8,0.0001466,2]
[382664614,1756701043876,-480.0,0.0001466,2]
[382664615,1756701043885,-480.0,0.0001466,2]
[382664618,1756701043895,-480.0,0.0001466,2]
[382664620,1756701043904,-1072.12,0.0001466,2]
[382664621,1756701043915,-1071.78,0.0001466,2]
[382664623,1756701043924,-480.0,0.0001466,2]
[382664625,1756701043934,-480.0,0.0001466,2]
[382664627,1756701043943,-480.0,0.0001466,2]
[382664629,1756701043952,-480.0,0.00014661,2]
[382664631,1756701043962,-480.0,0.00014661,2]
[382664633,1756701043971,-906.98,0.00014661,2]
[382664635,1756701043983,-480.0,0.00014661,2]
[382664637,1756701043993,-480.0,0.00014661,2]
[382664639,1756701044002,-480.0,0.00014661,2]
[382664641,1756701044012,-873.63,0.00014661,2]
[382664643,1756701044023,-480.0,0.00014661,2]
[382664645,1756701044032,-480.0,0.00014661,2]
[382664647,1756701044041,-480.0,0.00014661,2]
[382664649,1756701044051,-947.66,0.00014661,2]
[382664651,1756701044064,-480.0,0.00014661,2]
[382664653,1756701044074,-480.0,0.00014661,2]
[382664655,1756701044084,-480.0,0.00014661,2]
[382664657,1756701044093,-814.57,0.00014661,2]
[382664659,1756701044103,-480.0,0.00014661,2]
[382664661,1756701044113,-480.0,0.00014661,2]
[382664663,1756701044122,-150.27818524,0.00014661,2]
[382664665,1756701044132,-480.0,0.00014661,2]
[382664667,1756701044141,-810.56,0.00014661,2]
[382664669,1756701044151,-480.0,0.00014661,2]
[382664671,1756701044161,-783.62,0.00014661,2]
[382664673,1756701044170,-794.19,0.00014661,2]
[382664675,1756701044179,-822.05,0.00014661,2]
[382664677,1756701044189,-480.0,0.00014661,2]
[382664679,1756701044199,-480.0,0.00014661,2]
[382664681,1756701044208,-940.72,0.00014661,2]
[382664683,1756701044217,-758.61,0.00014661,2]
[382664685,1756701044227,-480.0,0.00014661,2]
[382664687,1756701044237,-1003.18,0.00014661,2]
[382664689,1756701044246,-480.0,0.00014661,2]
[382664691,1756701044256,-651.55,0.00014661,2]
[382664693,1756701044265,-480.0,0.00014661,2]
[382664695,1756701044275,-480.0,0.00014661,2]
[382664697,1756701044284,-1484.45,0.00014661,2]
[382664699,1756701044293,-902.83,0.00014661,2]
[382664701,1756701044303,-498.23,0.00014661,2]
[382664703,1756701044312,-977.89,0.00014661,2]
[382664705,1756701044321,-480.0,0.00014661,2]
[382664707,1756701044330,-480.0,0.00014661,2]
[382664709,1756701044340,-480.0,0.00014674,2]
[382664711,1756701044349,-779.64,0.00014674,2]
[382664713,1756701044359,-1054.11,0.00014675,2]
[382664715,1756701044369,-1600.48,0.00014675,2]
[382664716,1756701044378,-481.67,0.00014675,2]
[382664717,1756701044387,-939.6,0.00014675,2]
[382664718,1756701044396,-480.0,0.00014675,2]
[382664719,1756701044405,-1257.24652703,0.00014734,2]
[382664720,1756701044415,-205.36542853,0.00014777,2]
[382664721,1756701044425,-480.0,0.00014777,2]
[382664722,1756701044434,-480.0,0.00014777,2]
[382664723,1756701044443,-932.9,0.00014777,2]
[382664724,1756701044452,-480.0,0.00014777,2]
[382664725,1756701044461,-480.0,0.00014777,2]
[382664726,1756701044470,-590.99159166,0.00014777,2]
[382664727,1756701044479,-480.0,0.00014777,2]
[382664729,1756701044489,-480.0,0.00014777,2]
[382664731,1756701044499,-480.0,0.00014777,2]
[382664733,1756701044508,-616.84,0.00014777,2]
[382664735,1756701044518,-480.0,0.00014777,2]
[382664737,1756701044527,-485.86,0.00014777,2]
[382664739,1756701044536,-480.0,0.00014777,2]
[382664741,1756701044545,-480.0,0.00014777,2]
[382664743,1756701044554,-480.0,0.00014777,2]
[382664745,1756701044563,-492.7,0.00014777,2]
[382664747,1756701044572,-480.0,0.00014777,2]
[382664749,1756701044582,-480.0,0.00014777,2]
[382664751,1756701044591,-565.98,0.00014777,2]
[382664752,1756701044600,-480.0,0.00014777,2]
[382664754,1756701044609,-480.0,0.00014777,2]
[382664756,1756701044619,-480.0,0.00014777,2]
[382664758,1756701044629,-992.24,0.00014777,2]
[382664760,1756701044638,-480.0,0.00014777,2]
[382664762,1756701044647,-480.0,0.00014777,2]
[382664764,1756701044656,-480.0,0.00014777,2]
[382664766,1756701044665,-411.95930605,0.00014777,2]
[382664768,1756701044674,-480.0,0.00014777,2]
[382664770,1756701044683,-480.0,0.00014777,2]
[382664772,1756701044692,-480.0,0.00014777,2]
[382664774,1756701044702,-480.0,0.00014777,2]
[382664776,1756701044711,-482.36520786,0.00014777,2]
[382664778,1756701044720,-982.34,0.00014777,2]
[382664780,1756701044729,-480.0,0.00014777,2]
[382664782,1756701044742,-480.0,0.00014777,2]
[382664784,1756701044751,-739.26,0.00014777,2]
[382664786,1756701044760,-480.0,0.00014777,2]
[382664789,1756701044770,-970.43,0.00014777,2]
[382664791,1756701044779,-480.0,0.00014777,2]
[382664793,1756701044788,-480.0,0.00014777,2]
[382664795,1756701044797,-480.0,0.00014777,2]
[382664797,1756701044807,-480.0,0.00014777,2]
[382664799,1756701044816,-1064.87,0.00014777,2]
[382664801,1756701044826,-889.02,0.00014777,2]
[382664803,1756701044835,-910.92,0.00014777,2]
[382664805,1756701044845,-480.0,0.00014777,2]
[382664807,1756701044854,-480.0,0.00014777,2]
[382664809,1756701044864,-480.0,0.00014777,2]
[382664811,1756701044873,-480.0,0.00014777,2]
[382664813,1756701044882,-480.0,0.00014777,2]
[382664815,1756701044891,-550.96,0.00014777,2]
[382664817,1756701044900,-501.76,0.00014777,2]
[382664819,1756701044910,-480.0,0.00014777,2]
[382664821,1756701044920,-480.0,0.00014777,2]
[382664823,1756701044929,-480.0,0.00014777,2]
[382664825,1756701044939,-591.96021485,0.00014777,2]
[382664827,1756701044948,-480.0,0.00014777,2]
[382664829,1756701044958,-604.49,0.00014777,2]
[382664831,1756701044968,-480.0,0.00014777,2]
[382664833,1756701044978,-480.0,0.00014777,2]
[382664835,1756701044992,-480.0,0.00014777,2]
[382664837,1756701045001,-545.18,0.00014777,2]
[382664839,1756701045011,-480.0,0.00014777,2]
[382664841,1756701045021,-781.84,0.00014777,2]
[382664843,1756701045030,-480.0,0.00014777,2]
[382664845,1756701045039,-480.0,0.00014777,2]
[382664847,1756701045049,-480.0,0.00014777,2]
[382664849,1756701045059,-482.56,0.00014777,2]
[382664851,1756701045069,-480.0,0.00014777,2]
[382664853,1756701045078,-480.0,0.00014777,2]
[382664855,1756701045087,-480.0,0.00014777,2]
[382664857,1756701045097,-480.0,0.00014777,2]
[382664859,1756701045107,-480.0,0.00014777,2]
[382664861,1756701045116,-480.0,0.00014777,2]
[382664863,1756701045125,-480.0,0.00014777,2]
[382664869,1756701045172,-793.14,0.00014777,2]
[382664871,1756701045181,-539.81,0.00014777,2]
[382664873,1756701045190,-480.0,0.00014777,2]
[382664875,1756701045200,-480.0,0.00014777,2]
[382664877,1756701045210,-596.03,0.00014777,2]
[382664879,1756701045219,-534.91,0.00014777,2]
[382664881,1756701045228,-480.0,0.00014777,2]
[382664883,1756701045239,-480.0,0.00014777,2]
[382664885,1756701045249,-480.0,0.00014777,2]
[382664887,1756701045259,-480.0,0.00014777,2]
[382664889,1756701045268,-480.0,0.00014777,2]
[382664892,1756701045278,-480.0,0.00014777,2]
[382664894,1756701045288,-480.0,0.00014777,2]
[382664895,1756701045297,-480.0,0.00014777,2]
[382664898,1756701045307,-418.73002565,0.00014777,2]
[382664900,1756701045316,-480.0,0.00014777,2]
[382664902,1756701045326,-480.0,0.00014777,2]
[382664904,1756701045336,-728.83,0.00014777,2]
[382664906,1756701045345,-732.69,0.00014777,2]
[382664908,1756701045354,-480.0,0.00014777,2]
[382664910,1756701045363,-1382.49,0.00014777,2]
[382664912,1756701045372,-480.0,0.00014777,2]
[382664914,1756701045382,-481.97117126,0.00014777,2]
[382664916,1756701045391,-480.0,0.00014777,2]
[382664918,1756701045400,-480.0,0.00014777,2]
[382664920,1756701045409,-480.0,0.00014777,2]
[382664922,1756701045420,-480.0,0.00014777,2]
[382664924,1756701045431,-466.03785895,0.00014777,2]
[382664926,1756701045440,-480.0,0.00014777,2]
[382664928,1756701045450,-480.0,0.00014777,2]
[382664930,1756701045459,-480.0,0.00014777,2]
[382664932,1756701045467,-480.0,0.00014777,2]
[382664934,1756701045477,-480.0,0.00014777,2]
[382664936,1756701045486,-480.0,0.00014777,2]
[382664938,1756701045495,-514.78,0.00014777,2]
[382664940,1756701045504,-558.13,0.00014777,2]
[382664942,1756701045515,-480.0,0.00014777,2]
[382664944,1756701045524,-480.0,0.00014777,2]
[382664945,1756701045533,-480.0,0.00014777,2]
[382664948,1756701045543,-195.93906689,0.00014777,2]
[382664949,1756701045552,-480.0,0.00014777,2]
[382664951,1756701045562,-482.33626038,0.00014777,2]
[382664953,1756701045571,-480.0,0.00014777,2]
[382664955,1756701045580,-480.0,0.00014777,2]
[382664957,1756701045590,-480.0,0.00014777,2]
[382664959,1756701045601,-608.4,0.00014777,2]
[382664961,1756701045610,-480.0,0.00014777,2]
[382664963,1756701045619,-758.1,0.00014777,2]
[382664965,1756701045628,-480.0,0.00014777,2]
[382664967,1756701045637,-688.62,0.00014777,2]
[382664969,1756701045647,-480.0,0.00014777,2]
[382664971,1756701045656,-852.54,0.00014777,2]
[382664973,1756701045665,-480.0,0.00014777,2]
[382664975,1756701045674,-480.0,0.00014777,2]
[382664977,1756701045684,-480.0,0.00014777,2]
[382664979,1756701045693,-1024.84,0.00014777,2]
[382664981,1756701045702,-480.0,0.00014932,2]
[382664983,1756701045711,-589.94,0.00014932,2]
[382664985,1756701045720,-841.91,0.00014932,2]
[382664987,1756701045729,-480.0,0.00014932,2]
[382664989,1756701045739,-480.0,0.00014932,2]
[382664991,1756701045748,-480.0,0.00014932,2]
[382664993,1756701045757,-733.59,0.00014932,2]
[382664995,1756701045766,-242.31200202,0.00014933,2]
[382665240,1756701048057,-0.00823156,0.00014933,2]
[382665270,1756701048339,-480.0,0.00014385,2]
[382665272,1756701048348,-480.0,0.00014385,2]
[382665274,1756701048358,-480.0,0.00014386,2]
[382665277,1756701048368,-1113.16536889,0.00014503,2]
[382665279,1756701048379,-480.0,0.00014659,2]
[382665281,1756701048389,-480.0,0.0001466,2]
[382665283,1756701048399,-237.67976642,0.00014933,2]
[382665285,1756701048409,-480.0,0.00014933,2]
[382665287,1756701048419,-1189.28,0.00014933,2]
[382665289,1756701048428,-634.16,0.00014933,2]
[382665291,1756701048437,-856.86,0.00014933,2]
[382665293,1756701048447,-919.48,0.00014933,2]
[382665295,1756701048456,-480.0,0.00014933,2]
[382665297,1756701048465,-480.0,0.00014933,2]
[382665299,1756701048475,-480.0,0.00014933,2]
[382665301,1756701048488,-480.0,0.00014933,2]
[382665302,1756701048497,-599.89,0.00014933,2]
[382665303,1756701048506,-602.96,0.00014933,2]
[382665304,1756701048515,-480.0,0.00014933,2]
[382665305,1756701048525,-654.77,0.00014933,2]
[382665306,1756701048534,-480.0,0.00014933,2]
[382665307,1756701048544,-480.0,0.00014933,2]
[382665308,1756701048553,-769.18,0.00014933,2]
[382665309,1756701048562,-652.62,0.00014933,2]
[382665310,1756701048571,-835.71,0.00014933,2]
[382665311,1756701048580,-490.4,0.00014933,2]
[382665312,1756701048589,-683.7,0.00014933,2]
[382665313,1756701048598,-480.0,0.00014933,2]
[382665314,1756701048608,-407.02856853,0.00014933,2]
[382665315,1756701048618,-480.0,0.00014933,2]
[382665316,1756701048626,-480.0,0.00014933,2]
[382665317,1756701048635,-480.0,0.00014933,2]
[382665318,1756701048644,-480.0,0.00014933,2]
[382665319,1756701048653,-480.0,0.00014933,2]
[382665320,1756701048663,-480.0,0.00014933,2]
[382665321,1756701048672,-846.76,0.00014933,2]
[382665322,1756701048681,-549.92,0.00014933,2]
[382665324,1756701048690,-1499.81,0.00014933,2]
[382665325,1756701048699,-485.01,0.00014933,2]
[382665327,1756701048708,-480.0,0.00014933,2]
[382665329,1756701048718,-519.28,0.00014933,2]
[382665331,1756701048726,-480.0,0.00014933,2]
[382665333,1756701048736,-480.0,0.00014933,2]
[382665335,1756701048745,-559.16,0.00014933,2]
[382665337,1756701048756,-480.0,0.00014933,2]
[382665339,1756701048766,-758.33,0.00014933,2]
[382665341,1756701048775,-762.81,0.00014933,2]
[382665343,1756701048784,-543.1,0.00014933,2]
[382665345,1756701048795,-480.0,0.00014933,2]
[382665347,1756701048804,-480.0,0.00014933,2]
[382665349,1756701048814,-583.14,0.00014933,2]
[382665351,1756701048825,-480.0,0.00014933,2]
[382665353,1756701048834,-647.56,0.00014933,2]
[382665355,1756701048844,-805.46,0.00014933,2]
[382665357,1756701048853,-480.0,0.00014933,2]
[382665359,1756701048863,-1323.93,0.00014933,2]
[382665361,1756701048872,-480.0,0.00014933,2]
[382665363,1756701048882,-480.0,0.00014933,2]
[382665365,1756701048891,-480.0,0.00014933,2]
[382665367,1756701048900,-480.0,0.00014933,2]
[382665369,1756701048910,-741.84,0.00014933,2]
[382665371,1756701048919,-480.0,0.00014933,2]
[382665372,1756701048929,-480.0,0.00014933,2]
[382665374,1756701048938,-191.92663012,0.00014933,2]
[382666062,1756701069916,-545.60076481,0.0001424,2]
[382666063,1756701075686,-220.92924922,0.0001424,2]
[382666064,1756701077244,-232.11960421,0.0001424,2]
[382666065,1756701080845,-209.18175614,0.0001424,2]
[382666066,1756701082744,-345.27862562,0.0001424,2]
[382666067,1756701082771,-75.23333497,0.00014384,2]
[382666068,1756701084350,-196.3702296,0.00014384,2]
[382666069,1756701088496,-179.128694,0.00014384,2]
[382666070,1756701091280,-249.28840296,0.0001424,2]
[382666071,1756701093359,-155.17597698,0.0001424,2]
[382666072,1756701093385,-88.92798056,0.00014384,2]
[382666073,1756701095046,-53.44976087,0.00014384,2]
[382666074,1756701095069,-385.48751856,0.00014384,2]
[382666075,1756701096790,-94.51248144,0.00014384,2]
[382666076,1756701096812,-172.54835723,0.00014384,2]
[382666077,1756701100158,-185.68294368,0.0001424,2]
[382666078,1756701102304,-35.24630554,0.0001424,2]
[382666079,1756701102329,-210.11816667,0.00014384,2]
[382666081,1756701124928,-216.49099546,0.00014098,2]
[382666082,1756701128198,-160.86102226,0.00014098,2]
[382666083,1756701130079,-176.25948047,0.00014098,2]
[382666084,1756701175426,-187.78006525,0.00014098,2]
[382666085,1756701177419,-205.75755152,0.00014098,2]
[382666086,1756701178879,-4.21347535,0.00014098,2]
[382666087,1756701178901,-164.58399121,0.0001424,2]
[382666088,1756701201040,-388.86771905,0.00014098,2]
[382666089,1756701205080,-187.49038957,0.00014098,2]
[382666090,1756701207221,-164.69517072,0.00014098,2]
[382666091,1756701209914,-0.3382841,0.00014098,2]
[382666092,1756701209946,-265.58034545,0.0001424,2]
[382666093,1756701211450,-320.61407124,0.0001424,2]
[382666094,1756701213115,-205.77018515,0.0001424,2]
[382666095,1756701215201,-314.25209458,0.0001424,2]
[382666096,1756701216861,-232.12252053,0.0001424,2]
[382666097,1756701218748,-177.72945637,0.0001424,2]
[382666098,1756701220644,-229.51106449,0.0001424,2]
[382666099,1756701222060,-168.60608282,0.0001424,2]
[382666100,1756701224337,-171.33767119,0.0001424,2]
[382666101,1756701227183,-168.79746656,0.00014098,2]
[382666102,1756701227207,-160.52231243,0.0001424,2]
[382666103,1756701229879,-197.77050349,0.0001424,2]
[382666104,1756701231494,-221.79796346,0.0001424,2]
[382666105,1756701233735,-362.85544031,0.0001424,2]
[382666106,1756701243743,1000.0,0.00013415,2]
[382666107,1756701256976,-284.90876191,0.0001424,2]
[382666108,1756701259382,-152.50946757,0.0001424,2]
[382666109,1756701261464,-254.34940245,0.0001424,2]
[382666110,1756701264227,-265.31504505,0.0001424,2]
[382666111,1756701266373,-297.52407789,0.0001424,2]
[382666112,1756701267929,-184.0,0.0001424,2]
[382666113,1756701269605,-152.0,0.0001424,2]
[382666114,1756701271125,-162.42712842,0.0001424,2]
[382666115,1756701272661,-268.1740201,0.0001424,2]
[382666116,1756701274770,-160.0,0.0001424,2]
[382666117,1756701276419,-240.53584913,0.0001424,2]
[382666118,1756701278489,-176.52133694,0.0001424,2]
[382666119,1756701280435,-205.47882809,0.0001424,2]
[382666120,1756701284448,-326.37736295,0.0001424,2]
[382666121,1756701286520,-200.55364376,0.0001424,2]
[382666122,1756701288182,-167.30690623,0.0001424,2]
[382666123,1756701422298,161.70452581,0.000139,2]
[382666124,1756701422666,-242.50788465,0.00014239,2]
[382666125,1756701424186,-203.86458159,0.00014239,2]
[382666126,1756701426433,-216.38463683,0.00014239,2]
[382666127,1756701448737,-154.0452109,0.00014097,2]
[382666128,1756701452457,-218.6168053,0.00014097,2]
[382666129,1756701454150,-160.41445315,0.00014097,2]
[382666130,1756701455760,-129.68063372,0.00014097,2]
[382666131,1756701455786,-25.50052444,0.00014239,2]
[382666132,1756701457485,-274.75314131,0.00014239,2]
[382666134,1756701463744,-270.21770905,0.00014097,2]
[382666135,1756701464988,1071.480414,0.00013699,2]
[382666136,1756701466315,-102.44430715,0.00014097,2]
[382666137,1756701466341,-53.10374736,0.00014239,2]
[382666138,1756701469258,-200.0,0.00014239,2]
[382666139,1756701473797,2552.41418723,0.00013383,2]
[382666140,1756701473819,7447.58581277,0.00013383,2]
[382666141,1756701482281,161.70452582,0.000139,2]
[382666142,1756701515252,-150.8573272,0.00014097,2]
[382666143,1756701515276,-6.27659625,0.00014239,2]
[382666144,1756701534405,541.16716399,0.00013952,2]
[382666145,1756701538685,-144.58073095,0.00014239,2]
[382666146,1756701538708,-224.8618887,0.00014382,2]
[382666147,1756701542046,-176.0583158,0.00014383,2]
[382666148,1756701544832,-152.19350763,0.00014382,2]
[382666149,1756701547463,-147.80649237,0.00014382,2]
[382666150,1756701547488,-6.49327245,0.00014383,2]
[382666151,1756701549071,-249.5108133,0.00014383,2]
[382666152,1756701552328,-240.24603465,0.00014383,2]
[382666153,1756701555396,-233.58949047,0.00014383,2]
[382666154,1756701557528,-227.4492808,0.00014373,2]
[382666155,1756701560962,-203.06026371,0.00014229,2]
[382666156,1756701564568,-153.44348873,0.00014229,2]
[382666157,1756701581426,-80.25399874,0.00014229,2]
[382666158,1756701581448,-139.10730665,0.00014373,2]
[382666159,1756701583406,-245.16475776,0.00014373,2]
[382666160,1756701585585,-52.48568677,0.00014373,2]
[382666161,1756701585604,-130.79518084,0.00014373,2]
[382666162,1756701587129,-153.46117633,0.00014373,2]
[382666163,1756701591248,-311.83185196,0.00014229,2]
[382666164,1756701594297,-266.59370059,0.00014229,2]
[382666165,1756701596834,-69.38137821,0.00014229,2]
[382666166,1756701596857,-312.82950899,0.00014356,2]
[382666167,1756701599527,-39.11148069,0.00014356,2]
[382666168,1756701599549,-232.31876945,0.00014373,2]
[382666169,1756701601654,-306.99465509,0.00014373,2]
[382666170,1756701603757,-224.66406432,0.00014373,2]
[382666171,1756701604983,569.11,0.00027,120]
[382666172,1756701605792,-174.65961751,0.00014373,2]
[382666173,1756701608314,-228.55692904,0.00014229,2]
[382666174,1756701610755,-282.76244552,0.00014229,2]
[382666175,1756701614026,-281.9412158,0.00014229,2]
[382666176,1756701623308,153.46117633,0.00013946,2]
[382666177,1756701646223,153.46117633,0.00013946,2]
[382666178,1756701668357,153.46117633,0.00013946,2]
[382666179,1756701671167,-153.46117633,0.00014087,2]
[382666180,1756701671191,-105.40996287,0.00014229,2]
[382666181,1756701673297,-183.54713937,0.00014229,2]
[382666182,1756701675386,-288.54548674,0.00014229,2]
[382666183,1756701677547,-235.17427444,0.00014229,2]
[382666184,1756701677572,-43.84276798,0.00014284,2]
[382666185,1756701679184,-300.0,0.00014284,2]
[382666186,1756701688538,-151.0,0.00014284,2]
[382666187,1756701688931,-4644.97238144,0.00014284,2]
[382666188,1756701689055,-1431.27783627,0.00014373,2]
[382666189,1756701689100,-294.0,0.00014382,2]
[382666190,1756701689134,-300.0,0.00014382,2]
[382666191,1756701689165,-500.0,0.00014383,2]
[382666192,1756701689197,-474.29083928,0.00014383,2]
[382666193,1756701689228,-402.70661678,0.00014383,2]
[382666194,1756701689260,-500.0,0.00014383,2]
[382666195,1756701689292,-500.0,0.00014383,2]
[382666196,1756701689325,-412.64941534,0.00014383,2]
[382666197,1756701689547,-370.16058466,0.00014383,2]
[382666198,1756701689578,-480.0,0.00014383,2]
[382666199,1756701689612,-606.97,0.00014383,2]
[382666200,1756701689643,-480.0,0.00014383,2]
[382666201,1756701689672,-480.0,0.00014383,2]
[382666202,1756701689702,-480.0,0.00014383,2]
[382666203,1756701689732,-480.0,0.00014383,2]
[382666204,1756701689761,-480.0,0.00014383,2]
[382666205,1756701689792,-740.92,0.00014383,2]
[382666206,1756701689908,-1453.56,0.00014383,2]
[382666207,1756701689937,-480.0,0.00014383,2]
[382666208,1756701689969,-480.0,0.00014383,2]
[382666209,1756701690001,-500.0,0.00014383,2]
[382666210,1756701690032,-500.0,0.00014383,2]
[382666211,1756701690062,-500.0,0.00014383,2]
[382666212,1756701690093,-530.82268193,0.00014383,2]
[382666213,1756701690122,-500.0,0.00014383,2]
[382666214,1756701690225,-480.0,0.00014383,2]
[382666215,1756701690257,-500.0,0.00014383,2]
[382666216,1756701690521,-500.0,0.00014383,2]
[382666217,1756701690557,-500.0,0.00014383,2]
[382666218,1756701690588,-500.0,0.00014383,2]
[382666219,1756701690616,-715.14,0.00014383,2]
[382666220,1756701690646,-359.95947295,0.00014383,2]
[382666221,1756701690675,-480.0,0.00014383,2]
[382666222,1756701690703,-688.6210541,0.00014383,2]
[382666223,1756701690864,-552.5689459,0.00014383,2]
[382666224,1756701690893,-548.53,0.00014383,2]
[382666225,1756701690921,-480.0,0.00014383,2]
[382666226,1756701690950,-480.0,0.00014383,2]
[382666227,1756701691075,-3284.77412084,0.00014383,2]
[382666228,1756701691235,-3430.46175832,0.00014383,2]
[382666229,1756701691264,-480.0,0.00014384,2]
[382666230,1756701691293,-480.0,0.00014384,2]
[382666231,1756701691323,-480.0,0.00014384,2]
[382666232,1756701691466,-480.0,0.00014384,2]
[382666233,1756701691497,-1060.62,0.00014384,2]
[382666234,1756701691527,-480.0,0.00014384,2]
[382666235,1756701691556,-480.0,0.00014384,2]
[382666236,1756701691585,-480.0,0.00014384,2]
[382666237,1756701691615,-480.0,0.00014384,2]
[382666238,1756701691647,-480.0,0.00014384,2]
[382666239,1756701691677,-586.83,0.00014384,2]
[382666240,1756701691706,-465.11,0.00014384,2]
[382666241,1756701691802,-14.89,0.00014384,2]
[382666242,1756701691833,-480.0,0.00014384,2]
[382666243,1756701691863,-480.0,0.00014384,2]
[382666244,1756701691891,-480.0,0.00014384,2]
[382666245,1756701691920,-792.72,0.00014384,2]
[382666246,1756701691950,-480.0,0.00014384,2]
[382666247,1756701691978,-850.89,0.00014384,2]
[382666248,1756701692007,-480.0,0.00014384,2]
[382666249,1756701692034,-480.0,0.00014384,2]
[382666250,1756701692063,-443.01,0.00014384,2]
[382666251,1756701692163,-36.99,0.00014384,2]
[382666252,1756701692186,-129.33488001,0.00014384,2]
[382666253,1756701698827,192.34791836,0.00014,2]
[382666254,1756701698853,157.2852553,0.00014,2]